fUSD/lending_fUSD_20240930
["ID","MTS","AMOUNT","RATE_DAILY","PERIOD"]
[339516768,1727673044561,-150.0,0.00011589,2]
[339516769,1727673044570,-150.0,0.000116,2]
[339516770,1727673044580,-150.0,0.00011603,2]
[339516771,1727673044589,-150.0,0.00011604,2]
[339516772,1727673044598,-150.0,0.00011617,2]
[339516773,1727673044607,-150.0,0.00011619,2]
[339516774,1727673044616,-150.0,0.00011635,2]
[339516775,1727673044626,-150.0,0.00011635,2]
[339516776,1727673044635,-150.0,0.00011635,2]
[339516777,1727673044644,-150.0,0.00011635,2]
[339516778,1727673044654,-150.0,0.0001165,2]
[339516779,1727673044663,-224.66,0.0001165,2]
[339516780,1727673044672,-150.0,0.00011652,2]
[339516781,1727673044681,-150.0,0.00011665,2]
[339516782,1727673044691,-150.0,0.00011667,2]
[339516783,1727673044700,-150.0,0.00011669,2]
[339516784,1727673044710,-428.48,0.00011671,2]
[339516785,1727673044719,-457.94878844,0.00011676,2]
[339516786,1727673044729,-150.0,0.00011681,2]
[339516787,1727673044738,-150.0,0.00011687,2]
[339516788,1727673044748,-150.0,0.00011687,2]
[339516789,1727673044757,-150.0,0.00011696,2]
[339516790,1727673044767,-1.03496792,0.00011699,2]
[339516811,1727673046519,-1000.0,0.00010584,2]
[339516812,1727673046528,-148.96503208,0.00011699,2]
[339516813,1727673046539,-150.0,0.00011704,2]
[339516814,1727673046548,-150.0,0.00011712,2]
[339516815,1727673046557,-150.0,0.00011718,2]
[339516816,1727673046566,-150.0,0.00011721,2]
[339516817,1727673046577,-150.0,0.00011727,2]
[339516818,1727673046586,-150.0,0.00011731,2]
[339516819,1727673046595,-150.0,0.00011739,2]
[339516820,1727673046605,-150.0,0.00011739,2]
[339516821,1727673046615,-150.0,0.00011742,2]
[339516822,1727673046625,-150.0,0.00011756,2]
[339516823,1727673046634,-150.0,0.00011758,2]
[339516824,1727673046644,-1745.33466722,0.00011761,4]
[339516825,1727673046654,-150.0,0.00011763,2]
[339516826,1727673046663,-150.0,0.00011773,2]
[339516827,1727673046673,-150.0,0.00011773,2]
[339516828,1727673046682,-150.0,0.00011789,2]
[339516829,1727673046691,-150.0,0.00011791,2]
[339516830,1727673046701,-150.0,0.00011791,2]
[339516831,1727673046710,-150.0,0.00011795,2]
[339516832,1727673046719,-457.94878844,0.00011797,2]
[339516833,1727673046730,-150.0,0.00011804,2]
[339516834,1727673046740,-150.0,0.00011808,2]
[339516835,1727673046751,-150.0,0.00011819,2]
[339516836,1727673046760,-150.0,0.00011825,2]
[339516837,1727673046769,-150.0,0.00011826,2]
[339516838,1727673046779,-150.0,0.00011835,2]
[339516839,1727673046788,-150.0,0.00011842,2]
[339516840,1727673046797,-150.0,0.00011842,2]
[339516841,1727673046807,-150.0,0.00011842,2]
[339516842,1727673046818,-150.0,0.0001185,2]
[339516843,1727673046828,-150.0,0.00011858,2]
[339516844,1727673046838,-150.0,0.0001186,2]
[339516845,1727673046847,-150.0,0.00011866,2]
[339516846,1727673046856,-150.0,0.00011877,2]
[339516847,1727673046866,-150.0,0.00011881,2]
[339516848,1727673046875,-150.0,0.0001189,2]
[339516849,1727673046886,-150.0,0.00011894,2]
[339516850,1727673046895,-150.0,0.00011894,2]
[339516851,1727673046906,-150.0,0.00011896,2]
[339516852,1727673046915,-1000.0,0.00011906,2]
[339516853,1727673046924,-150.0,0.00011912,2]
[339516854,1727673046933,-150.0,0.00011912,2]
[339516855,1727673046943,-186.07573365,0.00011917,2]
[339516856,1727673182741,-200.0,0.00020749,120]
[339516857,1727673182793,-6949.72,0.00021,60]
[339516858,1727673182843,-2004.0,0.00021,60]
[339516859,1727673190649,-200.0,0.00021082,120]
[339516860,1727673190700,-200.0,0.00021416,120]
[339516861,1727673190745,-200.0,0.00021749,120]
[339516862,1727673191005,-1000.0,0.00022,120]
[339516863,1727673191056,-2027.448193,0.00022,120]
[339516864,1727673213805,200.0,0.00020668,120]
[339516865,1727673214175,200.0,0.00021116,120]
[339516866,1727673214576,200.0,0.00021563,120]
[339516867,1727673236342,731.39,9.176e-05,2]
[339516868,1727673347714,160.8707779,0.00022,120]
[339516869,1727673666762,500.0,0.00022,120]
[339516870,1727673666823,500.0,0.00022,120]
[339516871,1727673667234,500.0,0.00022,120]
[339516872,1727673667759,500.0,0.00022,120]
[339516873,1727673668164,500.0,0.00022,120]
[339516874,1727673668664,500.0,0.00022,120]
[339516875,1727673669145,500.0,0.00022,120]
[339516876,1727673669598,500.0,0.00022,120]
[339516877,1727673670016,500.0,0.00022,120]
[339516878,1727673670952,500.0,0.00022,120]
[339516879,1727673671078,500.0,0.00022,120]
[339516880,1727673671522,201.52495243,0.00022,120]
[339516881,1727673674033,1050.0,0.0001,2]
[339516882,1727673814160,200.0,0.00020749,120]
[339516883,1727673814546,209.896301,0.00021249,120]
[339516884,1727673817919,1000.0,0.00022,120]
[339516885,1727673910801,-1000.0,0.00010103,2]
[339516886,1727673910825,-250.0,0.00010133,2]
[339516887,1727673910851,-1881.06936802,0.00010799,2]
[339516888,1727673910876,-250.0,0.00010877,2]
[339516889,1727673910902,-346.22599364,0.00010899,2]
[339516890,1727673910928,-167.39,0.00010959,2]
[339516891,1727673910953,-250.0,0.00010959,2]
[339516892,1727673910978,-158.27,0.00010959,2]
[339516893,1727673911003,-174.03,0.00010972,2]
[339516894,1727673911028,-154.32,0.00010975,2]
[339516895,1727673911052,-1000.0,0.00010977,2]
[339516896,1727673911076,-300.0,0.00010977,2]
[339516897,1727673911100,-1337.1486,0.00010978,2]
[339516898,1727673911122,-499.99,0.00010978,2]
[339516899,1727673911146,-150.0,0.00010979,2]
[339516900,1727673911171,-1000.0,0.0001098,2]
[339516901,1727673911194,-1010.0,0.0001098,2]
[339516902,1727673911223,-1000.0,0.0001098,2]
[339516903,1727673911246,-1000.0,0.0001098,2]
[339516904,1727673911268,-1000.0,0.0001098,2]
[339516905,1727673911291,-1000.0,0.0001098,3]
[339516906,1727673911315,-1000.0,0.0001098,3]
[339516907,1727673911338,-1000.0,0.0001098,3]
[339516908,1727673911734,-983.0,0.0001098,3]
[339516909,1727673911763,-675.0,0.0001098,3]
[339516910,1727673911786,-1001.0,0.0001098,2]
[339516911,1727673911814,-326824.82908426,0.00010984,2]
[339516912,1727673911837,-210000.0,0.00010985,2]
[339516913,1727673911860,-1000.0,0.00010999,2]
[339516914,1727673911883,-994.0606,0.00010999,2]
[339516915,1727673911910,-2500.0,0.00011,2]
[339516916,1727673919947,2395.06169236,9e-05,2]
[339516917,1727673978575,736.0,8.751e-05,2]
[339516921,1727674140917,1000.0,0.00022,120]
[339516922,1727674155762,1000.0,0.00022,120]
[339516923,1727674166749,627.45879892,0.00022,120]
[339516939,1727674231705,-194.07,0.00010135,2]
[339516940,1727674231714,-197.66,0.00010157,2]
[339516941,1727674231724,-249.0,0.00010639,2]
[339516942,1727674231733,-5804.21056401,0.0001088,2]
[339516962,1727674237593,-2745.75267064,0.0001088,2]
[339516963,1727674237706,-1168.70766274,0.0001088,2]
[339516964,1727674237820,-339.70626536,0.0001088,2]
[339516965,1727674237832,-1000.5183932,0.0001088,2]
[339516966,1727674237843,-8831.06712007,0.0001088,2]
[339516967,1727674237853,-311.60339424,0.00010899,2]
[339516968,1727674237862,-261.3062,0.000109,2]
[339516969,1727674237871,-4629.5937,0.000109,2]
[339516970,1727674237880,-3803.1597,0.000109,2]
[339516971,1727674237889,-250.0,0.00010959,2]
[339516972,1727674237898,-154.32,0.0001098,2]
[339516973,1727674237908,-154.32,0.0001098,2]
[339516974,1727674237918,-500.0,0.00010989,2]
[339516975,1727674237927,-303.83675461,0.00010989,2]
[339516976,1727674237936,-153.51553191,0.00010989,2]
[339516977,1727674237946,-14598.27759917,0.0001099,2]
[339516983,1727674239576,-1020.48984212,0.0001099,2]
[339516984,1727674239587,-141024.48964951,0.0001099,2]
[339517235,1727674282726,-6769.15745134,0.0001099,2]
[339517236,1727674282736,-1964573.89193345,0.0001099,4]
[339517237,1727674282746,-154.32,0.0001099,2]
[339517238,1727674282756,-154.32,0.0001099,2]
[339517239,1727674282902,-154.32,0.0001099,2]
[339517240,1727674282922,-154.32,0.0001099,2]
[339517241,1727674282932,-154.32,0.0001099,2]
[339517242,1727674282942,-154.32,0.0001099,2]
[339517243,1727674282953,-375.52478794,0.00011,2]
[339517244,1727674282972,-8263953.68947328,0.00011,2]
[339517245,1727674282981,-2679638.33618083,0.00011,2]
[339517246,1727674282991,-1200.03,0.00011002,2]
[339517247,1727674283001,-736.0,0.00011015,2]
[339517248,1727674283010,-2335.11,0.00011042,2]
[339517249,1727674283019,-311.60339421,0.00011057,2]
[339517250,1727674283030,-1000.0,0.00011099,2]
[339517251,1727674283039,-1000.0,0.00011163,2]
[339517252,1727674283048,-500.0,0.00011164,2]
[339517253,1727674283058,-500.0,0.00011164,2]
[339517254,1727674283067,-500.0,0.00011164,2]
[339517255,1727674283076,-154.65,0.00011166,2]
[339517256,1727674283085,-5508.55,0.00011169,2]
[339517257,1727674283094,-154.65,0.00011171,2]
[339517258,1727674283103,-154.65,0.00011176,2]
[339517259,1727674283112,-154.65,0.00011181,2]
[339517260,1727674283122,-154.65,0.00011186,2]
[339517261,1727674283132,-154.65,0.00011191,2]
[339517262,1727674283141,-154.65,0.00011197,2]
[339517263,1727674283152,-154.65,0.00011202,2]
[339517264,1727674283162,-154.65,0.00011207,2]
[339517265,1727674283171,-154.65,0.00011212,2]
[339517266,1727674283180,-154.65,0.00011217,2]
[339517267,1727674283189,-150.0,0.00011219,2]
[339517268,1727674283198,-150.0,0.00011219,2]
[339517269,1727674283208,-150.0,0.00011219,2]
[339517270,1727674283217,-150.60896552,0.00011219,2]
[339517271,1727674283226,-150.0,0.00011219,2]
[339517272,1727674283235,-150.0,0.00011219,2]
[339517273,1727674283244,-154.65,0.00011222,2]
[339517274,1727674283253,-311.60339421,0.00011224,2]
[339517275,1727674283262,-150.0,0.00011254,2]
[339517276,1727674283271,-150.0,0.00011259,2]
[339517277,1727674283280,-150.0,0.00011288,2]
[339517278,1727674283289,-150.0,0.00011288,2]
[339517279,1727674283299,-150.0,0.000113,2]
[339517280,1727674283307,-150.0,0.00011323,2]
[339517281,1727674283317,-150.0,0.0001134,2]
[339517282,1727674283326,-150.0,0.00011344,2]
[339517283,1727674283336,-150.0,0.00011358,2]
[339517284,1727674283346,-150.0,0.00011358,2]
[339517285,1727674283356,-1000.0,0.00011366,2]
[339517286,1727674283365,-150.0,0.0001138,2]
[339517287,1727674283376,-311.60339421,0.00011391,2]
[339517288,1727674283385,-150.0,0.00011392,2]
[339517289,1727674283395,-150.0,0.0001142,2]
[339517290,1727674283405,-197.66,0.00011427,2]
[339517291,1727674283414,-150.0,0.00011427,2]
[339517292,1727674283425,-150.0,0.00011427,2]
[339517293,1727674283434,-150.0,0.0001146,2]
[339517294,1727674283445,-150.0,0.00011462,2]
[339517295,1727674283455,-150.0,0.00011468,2]
[339517296,1727674283465,-150.0,0.00011496,2]
[339517297,1727674283474,-150.0,0.00011496,2]
[339517298,1727674283484,-689.79,0.000115,2]
[339517299,1727674283493,-150.0,0.00011501,2]
[339517300,1727674283503,-150.0,0.00011531,2]
[339517301,1727674283511,-150.0,0.00011541,2]
[339517302,1727674283521,-311.60339421,0.00011558,2]
[339517303,1727674283531,-150.0,0.00011565,2]
[339517304,1727674283540,-150.0,0.00011565,2]
[339517305,1727674283549,-150.0,0.00011581,2]
[339517306,1727674283558,-150.0,0.00011593,2]
[339517307,1727674283567,-2335.11,0.00011594,2]
[339517308,1727674283577,-150.0,0.000116,2]
[339517309,1727674283586,-413.5457376,0.00011617,2]
[339517310,1727674283595,-150.0,0.00011621,2]
[339517311,1727674283604,-150.0,0.00011635,2]
[339517312,1727674283613,-150.0,0.00011635,2]
[339517313,1727674283623,-150.0,0.00011662,2]
[339517314,1727674283632,-150.0,0.00011669,2]
[339517315,1727674283642,-150.0,0.00011702,2]
[339517316,1727674283651,-150.0,0.00011704,2]
[339517317,1727674283661,-150.0,0.00011704,2]
[339517318,1727674283671,-150.0,0.00011718,2]
[339517319,1727674283680,-311.60339421,0.00011725,2]
[339517320,1727674283689,-150.0,0.00011739,2]
[339517321,1727674283698,-150.0,0.00011742,2]
[339517322,1727674283708,-150.0,0.00011773,2]
[339517323,1727674283717,-150.0,0.00011773,2]
[339517324,1727674283726,-150.0,0.00011782,2]
[339517325,1727674283735,-150.0,0.00011808,2]
[339517326,1727674283744,-150.0,0.00011822,2]
[339517327,1727674283753,-150.0,0.00011842,2]
[339517328,1727674283763,-150.0,0.00011842,2]
[339517329,1727674283772,-150.0,0.00011842,2]
[339517330,1727674283783,-150.0,0.00011842,2]
[339517331,1727674283792,-150.0,0.00011863,2]
[339517332,1727674283801,-150.0,0.00011877,2]
[339517333,1727674283811,-311.60339421,0.00011892,2]
[339517334,1727674283821,-150.0,0.00011903,2]
[339517335,1727674283830,-150.0,0.00011912,2]
[339517336,1727674283839,-150.0,0.00011912,2]
[339517337,1727674283848,-150.0,0.00011943,2]
[339517338,1727674283857,-150.0,0.00011946,2]
[339517339,1727674283867,-150.0,0.00011967,2]
[339517340,1727674283877,-150.0,0.00011981,2]
[339517341,1727674283886,-150.0,0.00011981,2]
[339517342,1727674283895,-150.0,0.00011983,2]
[339517343,1727674283904,-150.0,0.00012016,2]
[339517344,1727674283914,-150.0,0.00012023,2]
[339517345,1727674283922,-150.0,0.0001205,2]
[339517346,1727674283932,-150.0,0.0001205,2]
[339517347,1727674283941,-180.0,0.00012055,2]
[339517348,1727674283950,-311.60339421,0.00012059,2]
[339517349,1727674283965,-150.0,0.00012064,2]
[339517350,1727674283974,-1000.0,0.00012081,2]
[339517351,1727674283983,-150.0,0.00012085,2]
[339517352,1727674283993,-150.0,0.00012092,2]
[339517353,1727674284002,-1007.0,0.000121,2]
[339517354,1727674284011,-150.0,0.00012104,2]
[339517355,1727674284021,-1904.0,0.00012117,2]
[339517356,1727674284030,-150.0,0.00012119,2]
[339517357,1727674284039,-150.0,0.00012119,2]
[339517358,1727674284049,-150.0,0.00012144,2]
[339517359,1727674284058,-2335.11,0.00012146,2]
[339517360,1727674284067,-150.0,0.00012154,2]
[339517361,1727674284077,-381.7188,0.00012158,2]
[339517362,1727674284086,-150.0,0.00012184,2]
[339517363,1727674284096,-150.0,0.00012189,2]
[339517364,1727674284105,-150.0,0.00012189,2]
[339517365,1727674284115,-225.42,0.0001219,2]
[339517366,1727674284124,-150.0,0.00012216,2]
[339517367,1727674284134,-150.0,0.00012223,2]
[339517368,1727674284144,-150.0,0.00012224,2]
[339517369,1727674284155,-311.60339421,0.00012226,2]
[339517370,1727674284166,-150.0,0.00012258,2]
[339517371,1727674284176,-150.0,0.00012258,2]
[339517372,1727674284186,-150.0,0.00012265,2]
[339517373,1727674284195,-527.885,0.00012267,2]
[339517374,1727674284205,-150.0,0.00012267,2]
[339517375,1727674284216,-757.169,0.00012267,2]
[339517376,1727674284225,-448.0,0.00012267,2]
[339517377,1727674284234,-363.329,0.00012267,2]
[339517378,1727674284243,-57502.4781,0.00012292,2]
[339517379,1727674284253,-150.0,0.00012293,2]
[339517380,1727674284263,-150.0,0.00012305,2]
[339517381,1727674284274,-150.0,0.00012327,2]
[339517382,1727674284284,-150.0,0.00012327,2]
[339517383,1727674284293,-154.86842134,0.0001233,2]
[339517384,1727674284302,-154.86842134,0.0001233,2]
[339517385,1727674284311,-154.86842134,0.0001233,2]
[339517386,1727674284320,-154.86842134,0.0001233,2]
[339517387,1727674284329,-154.86842134,0.0001233,2]
[339517388,1727674284338,-155.36,0.0001233,2]
[339517389,1727674284348,-151.80900209,0.0001233,2]
[339517390,1727674284357,-151.80900209,0.0001233,2]
[339517391,1727674284366,-151.80900209,0.0001233,2]
[339517392,1727674284375,-151.80900209,0.0001233,2]
[339517393,1727674284384,-151.80900209,0.0001233,2]
[339517394,1727674284394,-151.80900209,0.0001233,2]
[339517395,1727674284403,-151.80900209,0.0001233,2]
[339517396,1727674284412,-151.80900209,0.0001233,2]
[339517397,1727674284421,-151.80900209,0.0001233,2]
[339517398,1727674284430,-152.3,0.0001233,2]
[339517399,1727674284439,-150.0,0.00012341,2]
[339517400,1727674284449,-150.0,0.00012345,2]
[339517401,1727674284458,-150.0,0.00012362,2]
[339517402,1727674284468,-150.0,0.00012385,2]
[339517403,1727674284477,-240059.41265621,0.00012392,2]
[339517404,1727674284486,-152.33578089,0.00012393,2]
[339517405,1727674284495,-152.33578089,0.00012393,2]
[339517406,1727674284506,-152.33578089,0.00012393,2]
[339517407,1727674284515,-152.33578089,0.00012393,2]
[339517408,1727674284525,-152.33578089,0.00012393,2]
[339517409,1727674284535,-152.33578089,0.00012393,2]
[339517410,1727674284544,-152.33578089,0.00012393,2]
[339517411,1727674284554,-152.33578089,0.00012393,2]
[339517412,1727674284563,-152.33578089,0.00012393,2]
[339517413,1727674284572,-152.33578089,0.00012393,2]
[339517414,1727674284581,-152.83,0.00012393,2]
[339517415,1727674284590,-155.94268703,0.00012393,2]
[339517416,1727674284600,-311.60339421,0.00012393,2]
[339517417,1727674284610,-500.0,0.00012393,2]
[339517418,1727674284620,-2000.0,0.00012393,2]
[339517419,1727674284630,-500.0,0.00012393,2]
[339517420,1727674284639,-200.0,0.00012393,2]
[339517421,1727674284648,-150.0,0.00012396,2]
[339517422,1727674284658,-150.0,0.00012396,2]
[339517423,1727674284667,-150.6,0.000124,2]
[339517424,1727674284677,-318.6,0.000124,2]
[339517425,1727674284686,-998.6,0.000124,2]
[339517426,1727674284695,-150.0,0.00012426,2]
[339517427,1727674284705,-150.0,0.00012431,2]
[339517428,1727674284714,-167.34,0.00012445,2]
[339517429,1727674284723,-166.35,0.00012445,2]
[339517430,1727674284732,-150.0,0.00012466,2]
[339517431,1727674284742,-252.34639086,0.00012466,2]
[339517432,1727674284751,-220.47000001,0.00012466,2]
[339517433,1727674284761,-151.11046598,0.00012466,2]
[339517434,1727674284770,-151.2377227,0.00012466,2]
[339517435,1727674284779,-161.52760445,0.00012473,2]
[339517436,1727674284788,-500.0,0.00012473,2]
[339517437,1727674284798,-309.28058449,0.00012473,2]
[339517438,1727674284808,-500.0,0.00012473,2]
[339517439,1727674284818,-254.64807538,0.00012473,2]
[339517440,1727674284827,-500.0,0.00012473,2]
[339517441,1727674284837,-500.0,0.00012473,2]
[339517442,1727674284847,-26936.98625951,0.00012491,3]
[339517443,1727674284856,-266.19139,0.00012493,2]
[339517444,1727674284867,-195.550394,0.00012493,2]
[339517445,1727674284876,-1002.05715,0.00012493,2]
[339517446,1727674284886,-1002.05715,0.00012493,2]
[339517447,1727674284895,-1002.05715,0.00012493,2]
[339517448,1727674284905,-1002.05715,0.00012493,2]
[339517449,1727674284914,-294.464703,0.00012493,2]
[339517450,1727674284923,-294.464703,0.00012493,2]
[339517451,1727674284932,-294.464703,0.00012493,2]
[339517452,1727674284942,-294.464703,0.00012493,2]
[339517453,1727674284952,-500.0,0.00012493,2]
[339517454,1727674284964,-500.0,0.00012493,2]
[339517455,1727674284974,-500.0,0.00012493,2]
[339517456,1727674284983,-500.0,0.00012493,2]
[339517457,1727674284992,-500.0,0.00012493,2]
[339517458,1727674285002,-500.0,0.00012493,2]
[339517459,1727674285012,-291.50172941,0.00012493,2]
[339517460,1727674285020,-500.6526183,0.00012493,2]
[339517461,1727674285030,-500.0,0.00012493,2]
[339517462,1727674285039,-470.97819182,0.00012493,2]
[339517463,1727674285048,-1327.26,0.00012493,2]
[339517464,1727674285057,-1327.26,0.00012493,2]
[339517465,1727674285066,-1327.26,0.00012493,2]
[339517466,1727674285075,-1327.26,0.00012493,2]
[339517467,1727674285084,-1327.26,0.00012493,2]
[339517468,1727674285094,-1327.26,0.00012493,2]
[339517469,1727674285102,-1327.26,0.00012493,2]
[339517470,1727674285111,-1327.26,0.00012493,2]
[339517471,1727674285121,-1327.26,0.00012493,2]
[339517472,1727674285130,-1327.26,0.00012493,2]
[339517473,1727674285139,-1327.26,0.00012493,2]
[339517474,1727674285148,-1327.26,0.00012493,2]
[339517475,1727674285157,-1327.26,0.00012493,2]
[339517476,1727674285166,-1327.26,0.00012493,2]
[339517477,1727674285176,-1327.26,0.00012493,2]
[339517478,1727674285185,-1327.26,0.00012493,2]
[339517479,1727674285193,-1327.26,0.00012493,2]
[339517480,1727674285204,-1327.26,0.00012493,2]
[339517481,1727674285214,-1327.26,0.00012493,2]
[339517482,1727674285223,-1327.26,0.00012493,2]
[339517483,1727674285232,-1327.26,0.00012493,2]
[339517484,1727674285241,-1327.26,0.00012493,2]
[339517485,1727674285251,-500.0,0.00012493,2]
[339517486,1727674285261,-1327.26,0.00012493,2]
[339517487,1727674285270,-502.16859742,0.00012493,2]
[339517488,1727674285279,-1327.49684699,0.00012493,2]
[339517489,1727674285288,-1220.05,0.00012493,2]
[339517490,1727674285297,-1220.05,0.00012493,2]
[339517491,1727674285307,-1220.05,0.00012493,2]
[339517492,1727674285316,-1220.05,0.00012493,2]
[339517493,1727674285325,-1220.05,0.00012493,2]
[339517494,1727674285336,-1220.05,0.00012493,2]
[339517495,1727674285346,-1220.05,0.00012493,2]
[339517496,1727674285355,-1220.05,0.00012493,2]
[339517497,1727674285365,-1220.05,0.00012493,2]
[339517498,1727674285374,-1220.05,0.00012493,2]
[339517499,1727674285383,-1220.05,0.00012493,2]
[339517500,1727674285392,-1220.05,0.00012493,2]
[339517501,1727674285401,-1220.05,0.00012493,2]
[339517502,1727674285411,-1220.05,0.00012493,2]
[339517503,1727674285422,-1220.05,0.00012493,2]
[339517504,1727674285432,-1220.05,0.00012493,2]
[339517505,1727674285441,-1220.05,0.00012493,2]
[339517506,1727674285452,-1220.05,0.00012493,2]
[339517507,1727674285463,-1220.05,0.00012493,2]
[339517508,1727674285471,-1220.05,0.00012493,2]
[339517509,1727674285481,-1220.05,0.00012493,2]
[339517510,1727674285490,-1220.05,0.00012493,2]
[339517511,1727674285499,-1220.05,0.00012493,2]
[339517512,1727674285508,-1220.17050833,0.00012493,2]
[339517513,1727674285517,-500.0,0.00012493,2]
[339517514,1727674285527,-500.0,0.00012493,2]
[339517515,1727674285536,-500.0,0.00012493,2]
[339517516,1727674285545,-500.0,0.00012493,2]
[339517517,1727674285555,-500.0,0.00012493,2]
[339517518,1727674285564,-500.0,0.00012493,2]
[339517519,1727674285573,-641.88059674,0.00012493,2]
[339517520,1727674285582,-500.0,0.00012493,2]
[339517521,1727674285591,-500.0,0.00012493,2]
[339517522,1727674285601,-500.0,0.00012493,2]
[339517523,1727674285610,-500.0,0.00012493,2]
[339517524,1727674285621,-500.0,0.00012493,2]
[339517525,1727674285630,-500.0,0.00012493,2]
[339517526,1727674285639,-176.88,0.00012493,2]
[339517527,1727674285784,-500.0,0.00012493,2]
[339517528,1727674285796,-500.0,0.00012493,2]
[339517529,1727674285807,-500.0,0.00012493,2]
[339517530,1727674285817,-500.0,0.00012493,2]
[339517531,1727674285827,-500.0,0.00012493,2]
[339517532,1727674285836,-500.0,0.00012493,2]
[339517533,1727674285847,-506.53187024,0.00012493,2]
[339517534,1727674285858,-500.0,0.00012493,2]
[339517535,1727674285868,-500.0,0.00012493,2]
[339517536,1727674285877,-500.0,0.00012493,2]
[339517537,1727674285887,-500.0,0.00012493,2]
[339517538,1727674285898,-502.18860407,0.00012493,2]
[339517539,1727674285907,-500.0,0.00012493,2]
[339517540,1727674285918,-500.0,0.00012493,2]
[339517541,1727674285928,-500.0,0.00012493,2]
[339517542,1727674285938,-500.0,0.00012493,2]
[339517543,1727674285947,-500.0,0.00012493,2]
[339517544,1727674285961,-425.53197076,0.00012493,2]
[339517545,1727674285972,-500.0,0.00012493,2]
[339517546,1727674285982,-179.60210966,0.00012493,2]
[339517547,1727674285993,-500.0,0.00012493,2]
[339517548,1727674286003,-500.0,0.00012493,2]
[339517549,1727674286012,-500.0,0.00012493,2]
[339517550,1727674286021,-500.0,0.00012493,2]
[339517551,1727674286031,-506.56820351,0.00012493,2]
[339517552,1727674286040,-500.0,0.00012493,2]
[339517553,1727674286050,-500.0,0.00012493,2]
[339517554,1727674286060,-239.65400005,0.00012493,2]
[339517555,1727674286070,-646.06986153,0.00012493,2]
[339517556,1727674286079,-500.0,0.00012493,2]
[339517557,1727674286089,-500.0,0.00012493,2]
[339517558,1727674286098,-500.0,0.00012493,2]
[339517559,1727674286107,-500.0,0.00012493,2]
[339517560,1727674286117,-502.33104561,0.00012493,2]
[339517561,1727674286127,-503.18836831,0.00012493,2]
[339517562,1727674286136,-500.0,0.00012493,2]
[339517563,1727674286145,-500.0,0.00012493,2]
[339517564,1727674286154,-500.0,0.00012493,2]
[339517565,1727674286164,-500.0,0.00012493,2]
[339517566,1727674286173,-501.71770574,0.00012493,2]
[339517567,1727674286182,-500.0,0.00012493,2]
[339517568,1727674286191,-500.0,0.00012493,2]
[339517569,1727674286201,-500.0,0.00012493,2]
[339517570,1727674286211,-500.0,0.00012493,2]
[339517571,1727674286220,-503.35453047,0.00012493,2]
[339517572,1727674286229,-2200.43,0.00012493,2]
[339517573,1727674286239,-2200.43,0.00012493,2]
[339517574,1727674286248,-2200.43,0.00012493,2]
[339517575,1727674286257,-2200.43,0.00012493,2]
[339517576,1727674286267,-2200.43,0.00012493,2]
[339517577,1727674286276,-2200.43,0.00012493,2]
[339517578,1727674286285,-2200.43,0.00012493,2]
[339517579,1727674286295,-2200.43,0.00012493,2]